[Event "Live Chess"]
[Site "Chess.com"]
[Date "2024.06.01"]
[Round "-"]
[White "Outspanner"]
[Black "viktor_forever1994"]
[Result "1-0"]
[WhiteElo "1484"]
[BlackElo "1448"]
[TimeControl "300"]
[EndTime "9:06:21 PDT"]
[Termination "Outspanner won by checkmate"]

1. Nf3 {[%clk 0:04:56.8]} 1... Nc6 {[%clk 0:04:58.1]} 2. c4 {[%clk 0:04:54.4]}
2... d5 {[%clk 0:04:55.6]} 3. b3 {[%clk 0:04:51.7]} 3... dxc4 {[%clk 0:04:53.7]}
4. bxc4 {[%clk 0:04:50.4]} 4... Nf6 {[%clk 0:04:52.3]} 5. g3 {[%clk 0:04:46.3]}
5... Bf5 {[%clk 0:04:49.1]} 6. Bg2 {[%clk 0:04:44]} 6... e5 {[%clk 0:04:47.3]}
7. d3 {[%clk 0:04:39.4]} 7... Bc5 {[%clk 0:04:40.3]} 8. Bb2 {[%clk 0:04:35.8]}
8... O-O {[%clk 0:04:19.1]} 9. O-O {[%clk 0:04:34.6]} 9... Re8 {[%clk
0:04:17.1]} 10. Nc3 {[%clk 0:04:27.2]} 10... h6 {[%clk 0:04:15.7]} 11. Qb3
{[%clk 0:03:56]} 11... Rb8 {[%clk 0:04:09]} 12. Ba3 {[%clk 0:03:53.7]} 12... Qd6
{[%clk 0:03:56.6]} 13. Bxc5 {[%clk 0:03:50.6]} 13... Qxc5 {[%clk 0:03:56.5]} 14.
Nd2 {[%clk 0:03:49.6]} 14... b6 {[%clk 0:03:37.7]} 15. Nde4 {[%clk 0:03:48.5]}
15... Nxe4 {[%clk 0:03:33.4]} 16. Nxe4 {[%clk 0:03:48.4]} 16... Bxe4 {[%clk
0:03:26.9]} 17. Bxe4 {[%clk 0:03:48.3]} 17... Nd4 {[%clk 0:03:25.5]} 18. Qb2
{[%clk 0:03:42.3]} 18... a5 {[%clk 0:03:17.4]} 19. Rab1 {[%clk 0:03:37.8]} 19...
Qd6 {[%clk 0:03:08.1]} 20. Rfc1 {[%clk 0:03:22.2]} 20... h5 {[%clk 0:03:03.5]}
21. c5 {[%clk 0:03:17]} 21... bxc5 {[%clk 0:02:59.6]} 22. Qxb8 {[%clk
0:03:15.5]} 22... Rxb8 {[%clk 0:02:58.4]} 23. Rxb8+ {[%clk 0:03:14.5]} 23... Qf8
{[%clk 0:02:40.8]} 24. Rxf8+ {[%clk 0:03:13.2]} 24... Kxf8 {[%clk 0:02:40.7]}
25. Kf1 {[%clk 0:03:12.4]} 25... g5 {[%clk 0:02:36.8]} 26. Rxc5 {[%clk
0:03:09.1]} 26... h4 {[%clk 0:02:32]} 27. Rxc7 {[%clk 0:03:04.5]} 27... f6
{[%clk 0:02:29.6]} 28. Ra7 {[%clk 0:03:02.9]} 28... hxg3 {[%clk 0:02:24.5]} 29.
hxg3 {[%clk 0:03:00.8]} 29... Nb5 {[%clk 0:02:15.1]} 30. Rxa5 {[%clk 0:02:57.2]}
30... Nc3 {[%clk 0:02:15]} 31. a4 {[%clk 0:02:53.8]} 31... Ke7 {[%clk
0:02:13.3]} 32. Ra6 {[%clk 0:02:48.4]} 32... Na2 {[%clk 0:02:02]} 33. Ke1 {[%clk
0:02:41.5]} 33... Nb4 {[%clk 0:01:59.7]} 34. Rb6 {[%clk 0:02:39.4]} 34... Nc2+
{[%clk 0:01:56.3]} 35. Kd2 {[%clk 0:02:37.3]} 35... Nd4 {[%clk 0:01:55.5]} 36.
e3 {[%clk 0:02:31.5]} 36... Ne6 {[%clk 0:01:52.9]} 37. Rxe6+ {[%clk 0:02:23.4]}
37... Kxe6 {[%clk 0:01:52.8]} 38. a5 {[%clk 0:02:22.7]} 38... Kd6 {[%clk
0:01:51.4]} 39. a6 {[%clk 0:02:22.1]} 39... Kc7 {[%clk 0:01:50.8]} 40. a7 {[%clk
0:02:21.4]} 40... Kc8 {[%clk 0:01:48.7]} 41. a8=Q+ {[%clk 0:02:19.8]} 41... Kd7
{[%clk 0:01:47.6]} 42. Qa6 {[%clk 0:02:18.6]} 42... Kc7 {[%clk 0:01:46.4]} 43.
Kc3 {[%clk 0:02:18.2]} 43... Kb8 {[%clk 0:01:44.9]} 44. Kc4 {[%clk 0:02:17.2]}
44... Kc7 {[%clk 0:01:43.9]} 45. Kc5 {[%clk 0:02:15.8]} 45... Kd7 {[%clk
0:01:42.9]} 46. Qd6+ {[%clk 0:02:12.6]} 46... Ke8 {[%clk 0:01:41.6]} 47. Qc7
{[%clk 0:02:11.6]} 47... Kf8 {[%clk 0:01:40.3]} 48. Kd6 {[%clk 0:02:10.7]} 48...
Ke8 {[%clk 0:01:39]} 49. Qe7# {[%clk 0:02:07.7]} 1-0

[Event "Live Chess"]
[Site "Chess.com"]
[Date "2024.06.01"]
[Round "-"]
[White "TheSmoulderingMaster"]
[Black "DoggyDalmatian"]
[Result "1-0"]
[WhiteElo "1734"]
[BlackElo "1551"]
[TimeControl "300"]
[EndTime "9:06:30 PDT"]
[Termination "TheSmoulderingMaster won by resignation"]

1. e4 {[%clk 0:04:55.1]} 1... e5 {[%clk 0:04:57.8]} 2. Nf3 {[%clk 0:04:53.6]}
2... Nc6 {[%clk 0:04:56.2]} 3. Bb5 {[%clk 0:04:51]} 3... Nf6 {[%clk 0:04:53.3]}
4. O-O {[%clk 0:04:50.1]} 4... Nxe4 {[%clk 0:04:47.5]} 5. d4 {[%clk 0:04:48.6]}
5... Nd6 {[%clk 0:04:34.8]} 6. Ba4 {[%clk 0:04:46]} 6... Be7 {[%clk 0:04:27.9]}
7. dxe5 {[%clk 0:04:44.4]} 7... Nf5 {[%clk 0:04:23.8]} 8. Qd3 {[%clk 0:04:40.4]}
8... d5 {[%clk 0:04:11.1]} 9. exd6 {[%clk 0:04:38.2]} 9... Qxd6 {[%clk
0:04:06.7]} 10. Qe4 {[%clk 0:04:32.3]} 10... Bd7 {[%clk 0:03:59.7]} 11. Bf4
{[%clk 0:04:30.2]} 11... Qe6 {[%clk 0:03:43.2]} 12. Re1 {[%clk 0:04:19.7]} 12...
Qxe4 {[%clk 0:03:33.2]} 13. Rxe4 {[%clk 0:04:15.2]} 13... O-O-O {[%clk
0:03:30.6]} 14. Nc3 {[%clk 0:04:11.7]} 14... Bf6 {[%clk 0:03:22.1]} 15. Nd5
{[%clk 0:04:04.6]} 15... Nce7 {[%clk 0:03:02.7]} 16. Nxf6 {[%clk 0:03:50.9]}
16... gxf6 {[%clk 0:03:00.4]} 17. g4 {[%clk 0:03:48.6]} 17... Bxa4 {[%clk
0:02:43]} 18. Rxa4 {[%clk 0:03:44.5]} 18... Nh6 {[%clk 0:02:29.1]} 19. Bxh6
{[%clk 0:03:41.1]} 1-0

[Event "Live Chess"]
[Site "Chess.com"]
[Date "2024.06.01"]
[Round "-"]
[White "GEMdzq"]
[Black "DJ_Lambton"]
[Result "1-0"]
[WhiteElo "2334"]
[BlackElo "1752"]
[TimeControl "300"]
[EndTime "9:06:44 PDT"]
[Termination "GEMdzq won by resignation"]

1. e4 {[%clk 0:04:55.8]} 1... c6 {[%clk 0:04:59.9]} 2. d4 {[%clk 0:04:54.9]}
2... d5 {[%clk 0:04:59.8]} 3. e5 {[%clk 0:04:53.9]} 3... Bf5 {[%clk 0:04:58.9]}
4. h4 {[%clk 0:04:50.8]} 4... h5 {[%clk 0:04:57.9]} 5. c4 {[%clk 0:04:50]} 5...
e6 {[%clk 0:04:56.9]} 6. Nc3 {[%clk 0:04:49]} 6... Bb4 {[%clk 0:04:55.7]} 7. Bd2
{[%clk 0:04:43.6]} 7... Ne7 {[%clk 0:04:54.5]} 8. Nf3 {[%clk 0:04:39.6]} 8...
Nd7 {[%clk 0:04:53.1]} 9. a3 {[%clk 0:04:33.2]} 9... Bxc3 {[%clk 0:04:52.1]} 10.
Bxc3 {[%clk 0:04:33.1]} 10... dxc4 {[%clk 0:04:48.8]} 11. Bxc4 {[%clk
0:04:31.9]} 11... Nb6 {[%clk 0:04:48.5]} 12. Bd3 {[%clk 0:04:30.4]} 12... Bxd3
{[%clk 0:04:47.6]} 13. Qxd3 {[%clk 0:04:30.3]} 13... Ned5 {[%clk 0:04:47]} 14.
Bd2 {[%clk 0:04:28.6]} 14... Rc8 {[%clk 0:04:45.8]} 15. O-O {[%clk 0:04:26.9]}
15... c5 {[%clk 0:04:44.7]} 16. dxc5 {[%clk 0:04:23.8]} 16... Rxc5 {[%clk
0:04:44.6]} 17. Rac1 {[%clk 0:04:15.3]} 17... Rxc1 {[%clk 0:04:43.3]} 18. Rxc1
{[%clk 0:04:15.2]} 18... O-O {[%clk 0:04:39.3]} 19. Ng5 {[%clk 0:04:14.3]} 19...
g6 {[%clk 0:04:37.3]} 20. g3 {[%clk 0:04:10]} 20... Ne7 {[%clk 0:04:33.7]} 21.
Qe2 {[%clk 0:04:00.5]} 21... Nf5 {[%clk 0:04:31.4]} 22. Ne4 {[%clk 0:03:57.9]}
22... Nd4 {[%clk 0:04:28.9]} 23. Qd3 {[%clk 0:03:48.1]} 23... Qd5 {[%clk
0:04:25.5]} 24. Nf6+ {[%clk 0:03:46.9]} 1-0

[Event "Live Chess"]
[Site "Chess.com"]
[Date "2024.06.01"]
[Round "-"]
[White "Bob2pen"]
[Black "mrsmarple1968"]
[Result "1-0"]
[WhiteElo "1913"]
[BlackElo "1813"]
[TimeControl "300"]
[EndTime "9:06:48 PDT"]
[Termination "Bob2pen won by resignation"]

1. e4 {[%clk 0:04:57.7]} 1... e5 {[%clk 0:04:56.7]} 2. Nf3 {[%clk 0:04:56.4]}
2... Nc6 {[%clk 0:04:54.7]} 3. Bb5 {[%clk 0:04:55.1]} 3... a6 {[%clk 0:04:51.9]}
4. Ba4 {[%clk 0:04:53.9]} 4... Nf6 {[%clk 0:04:49.7]} 5. O-O {[%clk 0:04:52.2]}
5... d6 {[%clk 0:04:46.6]} 6. c3 {[%clk 0:04:50.9]} 6... Be7 {[%clk 0:04:44.3]}
7. d4 {[%clk 0:04:49.7]} 7... b5 {[%clk 0:04:39.4]} 8. Bb3 {[%clk 0:04:48]} 8...
exd4 {[%clk 0:04:31]} 9. cxd4 {[%clk 0:04:46.6]} 9... Bg4 {[%clk 0:04:29]} 10.
h3 {[%clk 0:04:45]} 10... Bxf3 {[%clk 0:04:26.9]} 11. Qxf3 {[%clk 0:04:42.8]}
11... Nxd4 {[%clk 0:04:25.1]} 12. Qd1 {[%clk 0:04:34.5]} 12... Nxb3 {[%clk
0:04:19.7]} 13. Qxb3 {[%clk 0:04:30.3]} 13... O-O {[%clk 0:04:18]} 14. Re1
{[%clk 0:04:28.1]} 14... Re8 {[%clk 0:04:15.7]} 15. Nc3 {[%clk 0:04:26.6]} 15...
Rb8 {[%clk 0:04:09.6]} 16. Bf4 {[%clk 0:04:22]} 16... b4 {[%clk 0:04:03.5]} 17.
Nd5 {[%clk 0:04:18.5]} 17... c6 {[%clk 0:03:45.3]} 18. Ne3 {[%clk 0:04:05.8]}
18... Nxe4 {[%clk 0:03:31.3]} 19. Qc2 {[%clk 0:04:04.1]} 19... Bf6 {[%clk
0:03:07.2]} 20. Nc4 {[%clk 0:03:55]} 20... d5 {[%clk 0:03:01.4]} 21. Bxb8 {[%clk
0:03:47.2]} 21... dxc4 {[%clk 0:02:53.9]} 22. Rxe4 {[%clk 0:03:44]} 22... Rxe4
{[%clk 0:02:50.4]} 23. Qxe4 {[%clk 0:03:42.8]} 23... Qxb8 {[%clk 0:02:48.7]} 24.
Qxc4 {[%clk 0:03:39.8]} 24... Bxb2 {[%clk 0:02:38.8]} 25. Rb1 {[%clk 0:03:38.6]}
25... Bf6 {[%clk 0:02:23.3]} 26. Rxb4 {[%clk 0:03:36.8]} 26... Qe8 {[%clk
0:02:19.7]} 27. Rb1 {[%clk 0:03:31.8]} 27... a5 {[%clk 0:02:16.6]} 28. Rc1
{[%clk 0:03:27.8]} 28... Bg5 {[%clk 0:01:51.3]} 29. Qxc6 {[%clk 0:03:26]} 29...
Qxc6 {[%clk 0:01:45.8]} 30. Rxc6 {[%clk 0:03:24.3]} 30... h6 {[%clk 0:01:44.3]}
31. Kf1 {[%clk 0:03:22.8]} 31... Bd2 {[%clk 0:01:41.8]} 32. Ke2 {[%clk
0:03:21.5]} 32... Bb4 {[%clk 0:01:37.8]} 33. Kd3 {[%clk 0:03:20.6]} 33... Kf8
{[%clk 0:01:35.5]} 34. Kc4 {[%clk 0:03:19.3]} 34... Ke8 {[%clk 0:01:33.8]} 35.
Kd5 {[%clk 0:03:18.1]} 35... Kd7 {[%clk 0:01:32.3]} 36. Ra6 {[%clk 0:03:16.6]}
36... Be1 {[%clk 0:01:26.7]} 37. Ra7+ {[%clk 0:03:13.9]} 37... Ke8 {[%clk
0:01:20]} 38. f3 {[%clk 0:03:11.9]} 38... f6 {[%clk 0:01:16.4]} 39. Rxg7 {[%clk
0:03:09.5]} 39... Bc3 {[%clk 0:01:09.8]} 40. Ke6 {[%clk 0:03:07.8]} 40... Kd8
{[%clk 0:01:02.6]} 41. Rh7 {[%clk 0:03:02.4]} 41... Bd2 {[%clk 0:00:59.7]} 42.
Kxf6 {[%clk 0:02:59.2]} 42... a4 {[%clk 0:00:56.1]} 43. Ke6 {[%clk 0:02:58.2]}
43... a3 {[%clk 0:00:31.8]} 44. Rd7+ {[%clk 0:02:56.4]} 44... Kc8 {[%clk
0:00:30.2]} 45. Rxd2 {[%clk 0:02:55.1]} 1-0

[Event "Live Chess"]
[Site "Chess.com"]
[Date "2024.06.01"]
[Round "-"]
[White "StoreySniper"]
[Black "KeithArkell"]
[Result "0-1"]
[WhiteElo "2522"]
[BlackElo "2513"]
[TimeControl "300"]
[EndTime "9:07:01 PDT"]
[Termination "KeithArkell won by checkmate"]

1. c4 {[%clk 0:04:50.2]} 1... c5 {[%clk 0:04:58.2]} 2. g3 {[%clk 0:04:48.9]}
2... Nc6 {[%clk 0:04:57.1]} 3. Bg2 {[%clk 0:04:48.6]} 3... g6 {[%clk 0:04:56.6]}
4. Nc3 {[%clk 0:04:47.8]} 4... Bg7 {[%clk 0:04:56]} 5. e3 {[%clk 0:04:46.1]}
5... Nf6 {[%clk 0:04:54.4]} 6. Nge2 {[%clk 0:04:45.6]} 6... d6 {[%clk
0:04:53.4]} 7. d4 {[%clk 0:04:44.3]} 7... O-O {[%clk 0:04:50.9]} 8. O-O {[%clk
0:04:42.9]} 8... Bg4 {[%clk 0:04:47.5]} 9. h3 {[%clk 0:04:40.3]} 9... cxd4
{[%clk 0:04:45.8]} 10. exd4 {[%clk 0:04:37.9]} 10... Bxe2 {[%clk 0:04:44.9]} 11.
Nxe2 {[%clk 0:04:36.4]} 11... d5 {[%clk 0:04:44.3]} 12. c5 {[%clk 0:04:28.7]}
12... b6 {[%clk 0:04:41.6]} 13. cxb6 {[%clk 0:04:27.1]} 13... Qxb6 {[%clk
0:04:38.9]} 14. b3 {[%clk 0:04:23.6]} 14... e6 {[%clk 0:04:34.4]} 15. Ba3 {[%clk
0:04:20.2]} 15... Rfc8 {[%clk 0:04:33.3]} 16. Bc5 {[%clk 0:04:19.4]} 16... Qd8
{[%clk 0:04:31.8]} 17. b4 {[%clk 0:04:15.7]} 17... Nd7 {[%clk 0:04:28]} 18. Rc1
{[%clk 0:04:10.5]} 18... Nxc5 {[%clk 0:04:17]} 19. bxc5 {[%clk 0:04:09.4]} 19...
Qa5 {[%clk 0:04:13.1]} 20. Qd3 {[%clk 0:03:59]} 20... Rab8 {[%clk 0:04:11.8]}
21. Rfd1 {[%clk 0:03:50.2]} 21... Qa4 {[%clk 0:04:10.1]} 22. Rd2 {[%clk
0:03:33.5]} 22... Rb4 {[%clk 0:03:59.7]} 23. Rb1 {[%clk 0:03:14.9]} 23... Rxb1+
{[%clk 0:03:51.7]} 24. Qxb1 {[%clk 0:03:13.9]} 24... Nxd4 {[%clk 0:03:45.4]} 25.
Nxd4 {[%clk 0:03:05.9]} 25... Bxd4 {[%clk 0:03:45.3]} 26. Qb7 {[%clk 0:03:04.7]}
26... Rxc5 {[%clk 0:03:33.6]} 27. Qb8+ {[%clk 0:02:54.9]} 27... Kg7 {[%clk
0:03:32.1]} 28. Qf4 {[%clk 0:02:54.4]} 28... e5 {[%clk 0:03:28.5]} 29. Qh4
{[%clk 0:02:47.7]} 29... Qb4 {[%clk 0:03:24.6]} 30. Re2 {[%clk 0:02:40.1]} 30...
Rc1+ {[%clk 0:03:20.9]} 31. Kh2 {[%clk 0:02:39.3]} 31... Qc4 {[%clk 0:02:47.3]}
32. Rd2 {[%clk 0:02:36.5]} 32... Qc3 {[%clk 0:02:31.5]} 33. Re2 {[%clk
0:02:29.2]} 33... Qd3 {[%clk 0:02:28.2]} 34. Qg4 {[%clk 0:02:19.9]} 34... Qd1
{[%clk 0:02:18.9]} 35. h4 {[%clk 0:02:15.1]} 35... Bxf2 {[%clk 0:02:11.1]} 36.
Qf3 {[%clk 0:01:37.2]} 36... Bg1+ {[%clk 0:01:57]} 37. Kh3 {[%clk 0:01:35.5]}
37... e4 {[%clk 0:01:51.1]} 38. Qg4 {[%clk 0:01:29.3]} 38... h5 {[%clk
0:01:47.7]} 39. Qf4 {[%clk 0:01:26.6]} 39... Qxe2 {[%clk 0:01:39.3]} 40. Qxc1
{[%clk 0:01:25.8]} 40... Qg4# {[%clk 0:01:32.1]} 0-1

[Event "Live Chess"]
[Site "Chess.com"]
[Date "2024.06.01"]
[Round "-"]
[White "TC2304"]
[Black "gunslinger222"]
[Result "1-0"]
[WhiteElo "2332"]
[BlackElo "2269"]
[TimeControl "300"]
[EndTime "9:07:04 PDT"]
[Termination "TC2304 won by resignation"]

1. c4 {[%clk 0:04:55.5]} 1... c5 {[%clk 0:04:58.7]} 2. Nf3 {[%clk 0:04:53]} 2...
Nc6 {[%clk 0:04:58.2]} 3. g3 {[%clk 0:04:50.4]} 3... g6 {[%clk 0:04:57.8]} 4.
Bg2 {[%clk 0:04:49.6]} 4... Bg7 {[%clk 0:04:57.1]} 5. O-O {[%clk 0:04:49.3]}
5... d6 {[%clk 0:04:55.6]} 6. Nc3 {[%clk 0:04:46.5]} 6... h5 {[%clk 0:04:54.5]}
7. e3 {[%clk 0:04:39.1]} 7... Nh6 {[%clk 0:04:46.7]} 8. d4 {[%clk 0:04:36.6]}
8... Bg4 {[%clk 0:04:40.1]} 9. Ne2 {[%clk 0:04:21]} 9... Nf5 {[%clk 0:04:33.4]}
10. d5 {[%clk 0:04:06.9]} 10... Bxf3 {[%clk 0:04:24.7]} 11. Bxf3 {[%clk
0:04:00.9]} 11... Ne5 {[%clk 0:04:24.2]} 12. Bg2 {[%clk 0:03:59.8]} 12... h4
{[%clk 0:04:12.6]} 13. e4 {[%clk 0:03:51.1]} 13... Nd4 {[%clk 0:03:56.3]} 14.
Nxd4 {[%clk 0:03:49.5]} 14... cxd4 {[%clk 0:03:55.5]} 15. b3 {[%clk 0:03:36]}
15... hxg3 {[%clk 0:03:44.9]} 16. hxg3 {[%clk 0:03:34.4]} 16... d3 {[%clk
0:03:10.8]} 17. Bb2 {[%clk 0:03:32.5]} 17... Nf3+ {[%clk 0:03:05]} 18. Qxf3
{[%clk 0:03:32]} 18... Bxb2 {[%clk 0:03:03.8]} 19. Rab1 {[%clk 0:03:31.8]} 19...
Bg7 {[%clk 0:02:52.7]} 20. Qxd3 {[%clk 0:03:31.2]} 20... Qd7 {[%clk 0:02:45.1]}
21. b4 {[%clk 0:03:18.8]} 21... Qg4 {[%clk 0:02:43.8]} 22. Qf3 {[%clk
0:03:18.5]} 22... Qg5 {[%clk 0:02:42.9]} 23. Rfd1 {[%clk 0:03:09.9]} 23... Rc8
{[%clk 0:02:35.9]} 24. c5 {[%clk 0:03:07.7]} 24... O-O {[%clk 0:02:24.4]} 25.
Rbc1 {[%clk 0:02:57]} 25... Qe5 {[%clk 0:02:06.4]} 26. Rc2 {[%clk 0:02:49.3]}
26... f5 {[%clk 0:01:59]} 27. exf5 {[%clk 0:02:40.2]} 27... Rxf5 {[%clk
0:01:57.6]} 28. Qe4 {[%clk 0:02:38.8]} 28... Rcf8 {[%clk 0:01:45.4]} 29. Qxe5
{[%clk 0:02:34.2]} 29... Bxe5 {[%clk 0:01:42.7]} 30. c6 {[%clk 0:02:24]} 30...
bxc6 {[%clk 0:01:40.7]} 31. dxc6 {[%clk 0:02:23.9]} 31... e6 {[%clk 0:01:25.7]}
32. f4 {[%clk 0:02:09.9]} 32... Bg7 {[%clk 0:01:21.4]} 33. Rxd6 {[%clk
0:02:09.4]} 33... e5 {[%clk 0:01:17.7]} 34. c7 {[%clk 0:02:00.8]} 34... Rc8
{[%clk 0:01:09.8]} 35. Rd8+ {[%clk 0:01:54]} 35... Rf8 {[%clk 0:01:07.8]} 36.
Rxc8 {[%clk 0:01:53.6]} 36... Rxc8 {[%clk 0:01:06.5]} 37. Bh3 {[%clk 0:01:53.5]}
1-0

[Event "Live Chess"]
[Site "Chess.com"]
[Date "2024.06.01"]
[Round "-"]
[White "13Alexey"]
[Black "DukeBG"]
[Result "1-0"]
[WhiteElo "708"]
[BlackElo "480"]
[TimeControl "300"]
[EndTime "9:07:04 PDT"]
[Termination "13Alexey won on time"]

1. d4 {[%clk 0:04:58.4]} 1... d5 {[%clk 0:04:58.3]} 2. Bf4 {[%clk 0:04:57]} 2...
Nc6 {[%clk 0:04:49.5]} 3. Nf3 {[%clk 0:04:55.1]} 3... e5 {[%clk 0:04:39.4]} 4.
dxe5 {[%clk 0:04:53.5]} 4... d4 {[%clk 0:04:17.4]} 5. Nxd4 {[%clk 0:04:50.6]}
5... Nxd4 {[%clk 0:04:12.3]} 6. c3 {[%clk 0:04:45.9]} 6... Ne6 {[%clk
0:04:08.2]} 7. Qc1 {[%clk 0:04:34.7]} 7... g5 {[%clk 0:04:00]} 8. Bg3 {[%clk
0:04:26.4]} 8... Bg7 {[%clk 0:03:55.8]} 9. Qe3 {[%clk 0:04:16.7]} 9... c5 {[%clk
0:03:43.4]} 10. Qe4 {[%clk 0:04:13.1]} 10... Bd7 {[%clk 0:03:29.8]} 11. e3
{[%clk 0:04:11.5]} 11... Bc6 {[%clk 0:03:21.1]} 12. Qf5 {[%clk 0:04:02.2]} 12...
Ne7 {[%clk 0:03:09.6]} 13. Qg4 {[%clk 0:03:52.7]} 13... Qa5 {[%clk 0:02:39.6]}
14. Nd2 {[%clk 0:03:46.8]} 14... Qa4 {[%clk 0:02:23.5]} 15. Qxa4 {[%clk
0:03:34.7]} 15... Bxa4 {[%clk 0:02:21.3]} 16. b3 {[%clk 0:03:33.3]} 16... Bc6
{[%clk 0:02:16.4]} 17. Nf3 {[%clk 0:03:21.5]} 17... O-O-O {[%clk 0:02:01.9]} 18.
Be2 {[%clk 0:03:15.1]} 18... f6 {[%clk 0:01:49.9]} 19. exf6 {[%clk 0:03:12.7]}
19... Bxf6 {[%clk 0:01:48.4]} 20. Rc1 {[%clk 0:03:05.9]} 20... h5 {[%clk
0:01:04.6]} 21. h3 {[%clk 0:03:01.7]} 21... h4 {[%clk 0:01:02.1]} 22. Bh2 {[%clk
0:03:00.1]} 22... Ng6 {[%clk 0:00:16.7]} 23. O-O {[%clk 0:02:58.5]} 23... Ngf4
{[%clk 0:00:01.6]} 24. exf4 {[%clk 0:02:55.4]} 1-0

[Event "Live Chess"]
[Site "Chess.com"]
[Date "2024.06.01"]
[Round "-"]
[White "NAZRIZ1977"]
[Black "PureDashingOctopus"]
[Result "1-0"]
[WhiteElo "2150"]
[BlackElo "2227"]
[TimeControl "300"]
[EndTime "9:07:09 PDT"]
[Termination "NAZRIZ1977 won by resignation"]

1. c4 {[%clk 0:04:56.9]} 1... c5 {[%clk 0:04:58.7]} 2. g3 {[%clk 0:04:55.7]}
2... g6 {[%clk 0:04:57]} 3. Bg2 {[%clk 0:04:54.5]} 3... Bg7 {[%clk 0:04:56.4]}
4. Nf3 {[%clk 0:04:53]} 4... Nc6 {[%clk 0:04:54.1]} 5. O-O {[%clk 0:04:51.5]}
5... d6 {[%clk 0:04:52.3]} 6. Nc3 {[%clk 0:04:49.8]} 6... Bf5 {[%clk 0:04:50.5]}
7. d3 {[%clk 0:04:43.5]} 7... Qd7 {[%clk 0:04:47.9]} 8. Re1 {[%clk 0:04:42.3]}
8... Bh3 {[%clk 0:04:45.6]} 9. Bh1 {[%clk 0:04:41.2]} 9... h5 {[%clk 0:04:44.2]}
10. Nd5 {[%clk 0:04:22]} 10... h4 {[%clk 0:04:33.9]} 11. Nf4 {[%clk 0:04:16.5]}
11... hxg3 {[%clk 0:04:31.6]} 12. fxg3 {[%clk 0:04:09.6]} 12... Bg4 {[%clk
0:04:07.6]} 13. e3 {[%clk 0:03:34.5]} 13... O-O-O {[%clk 0:03:52.6]} 14. Qa4
{[%clk 0:03:22.7]} 14... Kb8 {[%clk 0:03:46.5]} 15. Rf1 {[%clk 0:03:20.9]} 15...
Nf6 {[%clk 0:02:58.1]} 16. Ng5 {[%clk 0:03:17.6]} 16... e5 {[%clk 0:02:46]} 17.
Nd5 {[%clk 0:03:12.4]} 17... Rh5 {[%clk 0:01:59]} 18. h4 {[%clk 0:02:37.6]}
18... Qe6 {[%clk 0:01:20]} 19. Nxe6 {[%clk 0:02:34.3]} 1-0

[Event "Live Chess"]
[Site "Chess.com"]
[Date "2024.06.01"]
[Round "-"]
[White "akp42"]
[Black "RuslanChessN"]
[Result "1/2-1/2"]
[WhiteElo "1976"]
[BlackElo "1975"]
[TimeControl "300"]
[EndTime "9:07:13 PDT"]
[Termination "Game drawn by repetition"]

1. e4 {[%clk 0:04:57]} 1... c6 {[%clk 0:04:54.3]} 2. d4 {[%clk 0:04:53.5]} 2...
d5 {[%clk 0:04:50.8]} 3. Nc3 {[%clk 0:04:52.9]} 3... dxe4 {[%clk 0:04:48.9]} 4.
Nxe4 {[%clk 0:04:51.7]} 4... Bf5 {[%clk 0:04:46.7]} 5. Ng3 {[%clk 0:04:50]} 5...
Bg6 {[%clk 0:04:45.7]} 6. h4 {[%clk 0:04:48.9]} 6... h6 {[%clk 0:04:44.3]} 7. h5
{[%clk 0:04:48]} 7... Bh7 {[%clk 0:04:43]} 8. Nf3 {[%clk 0:04:47.5]} 8... Nf6
{[%clk 0:04:39.9]} 9. Bd3 {[%clk 0:04:46.3]} 9... Bxd3 {[%clk 0:04:37.5]} 10.
Qxd3 {[%clk 0:04:44.9]} 10... e6 {[%clk 0:04:37]} 11. Bd2 {[%clk 0:04:39.3]}
11... Bd6 {[%clk 0:04:33.9]} 12. O-O-O {[%clk 0:04:38]} 12... Nbd7 {[%clk
0:04:28.7]} 13. Kb1 {[%clk 0:04:35.5]} 13... Qc7 {[%clk 0:04:27.4]} 14. Ne4
{[%clk 0:04:33.5]} 14... Nxe4 {[%clk 0:04:25.2]} 15. Qxe4 {[%clk 0:04:32.3]}
15... Nf6 {[%clk 0:04:24.8]} 16. Qd3 {[%clk 0:04:25.5]} 16... Bf4 {[%clk
0:04:19.4]} 17. Bxf4 {[%clk 0:04:15.7]} 17... Qxf4 {[%clk 0:04:15]} 18. Qb3
{[%clk 0:04:15.3]} 18... O-O-O {[%clk 0:04:10.6]} 19. Qa4 {[%clk 0:04:09.1]}
19... Kb8 {[%clk 0:04:07.2]} 20. Rd3 {[%clk 0:04:07.8]} 20... Nd5 {[%clk
0:03:47.4]} 21. Ne5 {[%clk 0:03:58.3]} 21... Nb6 {[%clk 0:03:28.7]} 22. Qb4
{[%clk 0:03:52.4]} 22... Rd5 {[%clk 0:03:09.8]} 23. a4 {[%clk 0:03:43.3]} 23...
Rhd8 {[%clk 0:03:04.5]} 24. Rhd1 {[%clk 0:03:41.4]} 24... f6 {[%clk 0:02:49.1]}
25. Ng6 {[%clk 0:03:04.1]} 25... e5 {[%clk 0:02:39.1]} 26. Ne7 {[%clk 0:02:57]}
26... Rxd4 {[%clk 0:02:37]} 27. Rxd4 {[%clk 0:02:24.4]} 27... Rxd4 {[%clk
0:02:34]} 28. Rxd4 {[%clk 0:02:16.5]} 28... exd4 {[%clk 0:02:29.8]} 29. Nxc6+
{[%clk 0:02:05.9]} 29... bxc6 {[%clk 0:02:25.2]} 30. a5 {[%clk 0:02:04.9]} 30...
Kb7 {[%clk 0:01:58.7]} 31. axb6 {[%clk 0:01:58.4]} 31... axb6 {[%clk 0:01:58.6]}
32. Qe7+ {[%clk 0:01:53.2]} 32... Qc7 {[%clk 0:01:57.2]} 33. Qe4 {[%clk
0:01:51.9]} 33... Qe5 {[%clk 0:01:54.8]} 34. Qg6 {[%clk 0:01:50.7]} 34... Qe7
{[%clk 0:01:51.1]} 35. f3 {[%clk 0:01:44]} 35... c5 {[%clk 0:01:49.1]} 36. Qf5
{[%clk 0:01:37.7]} 36... Kc6 {[%clk 0:01:46.6]} 37. Qc8+ {[%clk 0:01:35.1]}
37... Kd5 {[%clk 0:01:42]} 38. Qa8+ {[%clk 0:01:30.5]} 38... Kd6 {[%clk
0:01:36.5]} 39. Qb8+ {[%clk 0:01:26.6]} 39... Qc7 {[%clk 0:01:35]} 40. Qf8+
{[%clk 0:01:25.4]} 40... Qe7 {[%clk 0:01:34.5]} 41. Qb8+ {[%clk 0:01:24.2]}
41... Qc7 {[%clk 0:01:31.8]} 42. Qf8+ {[%clk 0:01:23.1]} 42... Qe7 {[%clk
0:01:27.9]} 43. Qb8+ {[%clk 0:01:22]} 1/2-1/2